[Event "Late-Titled-Tuesday-Blitz-June-18-2024"]
[Site "Chess.com"]
[Date "2024.06.18"]
[Round "3"]
[White "Seppppppy"]
[Black "Oleg_Papayan"]
[Result "1/2-1/2"]
[WhiteElo "2241"]
[BlackElo "2537"]
[TimeControl "180+1"]
[EndTime "14:33:17 PDT"]
[Termination "Game drawn - insufficient material"]

1. d4 {[%clk 0:03:00.9]} 1... d5 {[%clk 0:02:59.7]} 2. c4 {[%clk 0:02:59.4]}
2... dxc4 {[%clk 0:03:00.6]} 3. e4 {[%clk 0:02:55.7]} 3... e5 {[%clk 0:02:59.7]}
4. Nf3 {[%clk 0:02:55.5]} 4... exd4 {[%clk 0:02:59.8]} 5. Bxc4 {[%clk
0:02:56.1]} 5... Nc6 {[%clk 0:02:59.9]} 6. O-O {[%clk 0:02:44.7]} 6... Be6
{[%clk 0:03:00]} 7. Bb5 {[%clk 0:02:38.6]} 7... Bc5 {[%clk 0:02:59]} 8. Nbd2
{[%clk 0:02:35.1]} 8... Ne7 {[%clk 0:02:48.6]} 9. Nb3 {[%clk 0:02:33.8]} 9...
Bxb3 {[%clk 0:02:48.7]} 10. Qxb3 {[%clk 0:02:32.3]} 10... O-O {[%clk 0:02:47.9]}
11. Bg5 {[%clk 0:02:32.3]} 11... a6 {[%clk 0:02:32.5]} 12. Bxc6 {[%clk
0:02:31.4]} 12... bxc6 {[%clk 0:02:31.3]} 13. Rad1 {[%clk 0:02:30.3]} 13... Kh8
{[%clk 0:02:15.1]} 14. Qc4 {[%clk 0:02:27.4]} 14... Bb6 {[%clk 0:01:55.7]} 15.
Nxd4 {[%clk 0:02:27.4]} 15... Qe8 {[%clk 0:01:40.8]} 16. Bxe7 {[%clk 0:02:23]}
16... Qxe7 {[%clk 0:01:41.7]} 17. Nxc6 {[%clk 0:02:23.1]} 17... Qf6 {[%clk
0:01:42.4]} 18. b4 {[%clk 0:02:13.6]} 18... Rfe8 {[%clk 0:01:39.2]} 19. a4
{[%clk 0:02:08.7]} 19... Re6 {[%clk 0:01:38.4]} 20. b5 {[%clk 0:02:05.2]} 20...
axb5 {[%clk 0:01:37.5]} 21. axb5 {[%clk 0:02:06.1]} 21... Rae8 {[%clk
0:01:35.8]} 22. e5 {[%clk 0:02:04]} 22... Qg6 {[%clk 0:01:29.8]} 23. Kh1 {[%clk
0:01:39.1]} 23... h5 {[%clk 0:01:28.7]} 24. f4 {[%clk 0:01:38.9]} 24... Qf5
{[%clk 0:01:29.1]} 25. Qd3 {[%clk 0:01:24.6]} 25... g6 {[%clk 0:00:56.6]} 26.
Qxf5 {[%clk 0:01:23.6]} 26... gxf5 {[%clk 0:00:57.5]} 27. Rd7 {[%clk 0:01:23.4]}
27... Kg7 {[%clk 0:00:57.3]} 28. Rf3 {[%clk 0:01:18.1]} 28... h4 {[%clk
0:00:57.3]} 29. Rh3 {[%clk 0:01:13]} 29... Ra8 {[%clk 0:00:52.3]} 30. Rd1 {[%clk
0:01:05.1]} 30... Rh6 {[%clk 0:00:52.6]} 31. Ne7 {[%clk 0:00:56.3]} 31... Rh5
{[%clk 0:00:30]} 32. Rxh4 {[%clk 0:00:55.9]} 32... Rxh4 {[%clk 0:00:30.9]} 33.
Nxf5+ {[%clk 0:00:56]} 33... Kg6 {[%clk 0:00:31.2]} 34. Nxh4+ {[%clk 0:00:56.3]}
34... Kh5 {[%clk 0:00:32.1]} 35. Nf3 {[%clk 0:00:55.8]} 35... Kg4 {[%clk
0:00:32.3]} 36. Ng5 {[%clk 0:00:33.3]} 36... Kxf4 {[%clk 0:00:22.6]} 37. Nxf7
{[%clk 0:00:33.5]} 37... Kf5 {[%clk 0:00:23.3]} 38. Rf1+ {[%clk 0:00:31.5]}
38... Ke6 {[%clk 0:00:22.4]} 39. h4 {[%clk 0:00:24.2]} 39... Ra5 {[%clk
0:00:20.6]} 40. h5 {[%clk 0:00:22.5]} 40... Be3 {[%clk 0:00:17.4]} 41. h6 {[%clk
0:00:21.3]} 41... Bxh6 {[%clk 0:00:16.4]} 42. Nxh6 {[%clk 0:00:21.1]} 42... Kxe5
{[%clk 0:00:15.7]} 43. Rf5+ {[%clk 0:00:17.9]} 43... Ke6 {[%clk 0:00:16.2]} 44.
g4 {[%clk 0:00:17.9]} 44... Ra8 {[%clk 0:00:12.1]} 45. Nf7 {[%clk 0:00:14.7]}
45... Ra4 {[%clk 0:00:09.9]} 46. Ng5+ {[%clk 0:00:11.7]} 46... Ke7 {[%clk
0:00:07.9]} 47. Kg2 {[%clk 0:00:06.5]} 47... Rxg4+ {[%clk 0:00:07.6]} 48. Kf3
{[%clk 0:00:07.2]} 48... Rb4 {[%clk 0:00:07.3]} 49. Ne4 {[%clk 0:00:07.5]} 49...
Ke6 {[%clk 0:00:05.8]} 50. Rh5 {[%clk 0:00:08]} 50... Rb3+ {[%clk 0:00:06.2]}
51. Kf4 {[%clk 0:00:08.4]} 51... Rb4 {[%clk 0:00:06.6]} 52. Rh6+ {[%clk
0:00:08.4]} 52... Ke7 {[%clk 0:00:05.9]} 53. Rh5 {[%clk 0:00:07.2]} 53... Ke6
{[%clk 0:00:05.9]} 54. Re5+ {[%clk 0:00:07.8]} 54... Kd7 {[%clk 0:00:05.7]} 55.
Kf5 {[%clk 0:00:08.3]} 55... Rb1 {[%clk 0:00:04.8]} 56. Nc5+ {[%clk 0:00:07.8]}
56... Kd6 {[%clk 0:00:05.7]} 57. Ne4+ {[%clk 0:00:08.2]} 57... Kd7 {[%clk
0:00:06.1]} 58. Rd5+ {[%clk 0:00:08.7]} 58... Ke7 {[%clk 0:00:06.2]} 59. Ke5
{[%clk 0:00:08.8]} 59... Rb2 {[%clk 0:00:04.9]} 60. Rc5 {[%clk 0:00:08.9]} 60...
Kd7 {[%clk 0:00:04.8]} 61. Nf6+ {[%clk 0:00:08.8]} 61... Kd8 {[%clk 0:00:04.9]}
62. Nd5 {[%clk 0:00:09]} 62... Re2+ {[%clk 0:00:04.1]} 63. Kd4 {[%clk
0:00:09.4]} 63... Rd2+ {[%clk 0:00:04.5]} 64. Kc3 {[%clk 0:00:09.4]} 64... Rd1
{[%clk 0:00:04.3]} 65. Kb4 {[%clk 0:00:07]} 65... Rb1+ {[%clk 0:00:02]} 66. Kc4
{[%clk 0:00:07.3]} 66... Rc1+ {[%clk 0:00:02.4]} 67. Nc3 {[%clk 0:00:07.7]}
67... Kd7 {[%clk 0:00:01.9]} 68. Rd5+ {[%clk 0:00:08.2]} 68... Kc8 {[%clk
0:00:02.1]} 69. Rd3 {[%clk 0:00:08.8]} 69... Kb7 {[%clk 0:00:02.5]} 70. Kc5
{[%clk 0:00:09.5]} 70... Rc2 {[%clk 0:00:02.7]} 71. Kb4 {[%clk 0:00:09.7]} 71...
Rc1 {[%clk 0:00:02.9]} 72. Rd7 {[%clk 0:00:07.2]} 72... Kc8 {[%clk 0:00:02.4]}
73. Rh7 {[%clk 0:00:07.2]} 73... Kb8 {[%clk 0:00:02.6]} 74. Nd5 {[%clk
0:00:07.3]} 74... Rb1+ {[%clk 0:00:02.7]} 75. Kc5 {[%clk 0:00:07.4]} 75... Rc1+
{[%clk 0:00:03.2]} 76. Kd4 {[%clk 0:00:06]} 76... Rd1+ {[%clk 0:00:03.6]} 77.
Ke5 {[%clk 0:00:06.1]} 77... Rc1 {[%clk 0:00:04]} 78. Nb4 {[%clk 0:00:05.2]}
78... Rc5+ {[%clk 0:00:03.8]} 79. Kd4 {[%clk 0:00:04.5]} 79... Rxb5 {[%clk
0:00:04.3]} 80. Kc4 {[%clk 0:00:05]} 80... Rb6 {[%clk 0:00:03.7]} 81. Kc5 {[%clk
0:00:05.1]} 81... Rf6 {[%clk 0:00:03.4]} 82. Nd5 {[%clk 0:00:05.2]} 82... Rf5
{[%clk 0:00:02.7]} 83. Rh8+ {[%clk 0:00:05.7]} 83... Kb7 {[%clk 0:00:03]} 84.
Rh7 {[%clk 0:00:06]} 84... Kb8 {[%clk 0:00:03.2]} 85. Kc6 {[%clk 0:00:06.3]}
85... Rf1 {[%clk 0:00:02]} 86. Rh8+ {[%clk 0:00:05.1]} 86... Ka7 {[%clk
0:00:02.5]} 87. Nxc7 {[%clk 0:00:04.5]} 87... Rc1+ {[%clk 0:00:02.9]} 88. Kd6
{[%clk 0:00:04.9]} 88... Rd1+ {[%clk 0:00:03.1]} 89. Nd5 {[%clk 0:00:04.8]}
89... Ka6 {[%clk 0:00:02.7]} 90. Rh2 {[%clk 0:00:05.5]} 90... Rg1 {[%clk
0:00:02.2]} 91. Ra2+ {[%clk 0:00:05.8]} 91... Kb5 {[%clk 0:00:02.5]} 92. Rb2+
{[%clk 0:00:06.4]} 92... Kc4 {[%clk 0:00:02.8]} 93. Rc2+ {[%clk 0:00:06.9]}
93... Kb3 {[%clk 0:00:02.9]} 94. Rc3+ {[%clk 0:00:07.1]} 94... Kb2 {[%clk
0:00:02.9]} 95. Rf3 {[%clk 0:00:07.8]} 95... Rg6+ {[%clk 0:00:02.9]} 96. Kc5
{[%clk 0:00:08.1]} 96... Rg8 {[%clk 0:00:03.1]} 97. Nb4 {[%clk 0:00:08.2]} 97...
Rc8+ {[%clk 0:00:03.3]} 98. Kd4 {[%clk 0:00:08.4]} 98... Rd8+ {[%clk 0:00:03.6]}
99. Nd5 {[%clk 0:00:08.8]} 99... Rd7 {[%clk 0:00:03.3]} 100. Rf2+ {[%clk
0:00:09]} 100... Kb3 {[%clk 0:00:03.6]} 101. Rf3+ {[%clk 0:00:09.5]} 101... Kb2
{[%clk 0:00:03.9]} 102. Rf6 {[%clk 0:00:10.3]} 102... Rd8 {[%clk 0:00:03.8]}
103. Rb6+ {[%clk 0:00:10.7]} 103... Kc2 {[%clk 0:00:04.3]} 104. Kc4 {[%clk
0:00:10.4]} 104... Rc8+ {[%clk 0:00:03.9]} 105. Kd4 {[%clk 0:00:11]} 105... Rd8
{[%clk 0:00:04.6]} 106. Ra6 {[%clk 0:00:11.2]} 106... Kb2 {[%clk 0:00:04.1]}
107. Rc6 {[%clk 0:00:09.3]} 107... Kb3 {[%clk 0:00:04.2]} 108. Rc3+ {[%clk
0:00:09.1]} 108... Kb2 {[%clk 0:00:04.7]} 109. Rd3 {[%clk 0:00:06.9]} 109... Kc2
{[%clk 0:00:04.3]} 110. Ke4 {[%clk 0:00:05.9]} 110... Re8+ {[%clk 0:00:04.2]}
111. Kd4 {[%clk 0:00:06.4]} 111... Rd8 {[%clk 0:00:04.8]} 112. Rh3 {[%clk
0:00:06.7]} 112... Kb2 {[%clk 0:00:04.6]} 113. Kc4 {[%clk 0:00:07.2]} 113...
Rc8+ {[%clk 0:00:04.6]} 114. Kb5 {[%clk 0:00:07.2]} 114... Rb8+ {[%clk
0:00:04.9]} 115. Nb6 {[%clk 0:00:07.7]} 115... Kc2 {[%clk 0:00:04.2]} 116. Rh2+
{[%clk 0:00:07.7]} 116... Kd3 {[%clk 0:00:04.6]} 117. Rh6 {[%clk 0:00:08.2]}
117... Ke4 {[%clk 0:00:04.8]} 118. Kc5 {[%clk 0:00:08.6]} 118... Kf4 {[%clk
0:00:05]} 119. Nd5+ {[%clk 0:00:08.8]} 119... Ke4 {[%clk 0:00:04.9]} 120. Rh4+
{[%clk 0:00:08.2]} 120... Kf3 {[%clk 0:00:05.6]} 121. Ne7 {[%clk 0:00:08.3]}
121... Rb7 {[%clk 0:00:05.3]} 122. Nc6 {[%clk 0:00:08.5]} 122... Ke3 {[%clk
0:00:05]} 123. Rh3+ {[%clk 0:00:08.8]} 123... Kf4 {[%clk 0:00:05.2]} 124. Nd4
{[%clk 0:00:08.3]} 124... Rc7+ {[%clk 0:00:05]} 125. Kd5 {[%clk 0:00:08.8]}
125... Rd7+ {[%clk 0:00:05.6]} 126. Kc4 {[%clk 0:00:09.2]} 126... Rc7+ {[%clk
0:00:05.9]} 127. Kd3 {[%clk 0:00:09.8]} 127... Rc8 {[%clk 0:00:05.7]} 128. Rh6
{[%clk 0:00:09.6]} 128... Kg5 {[%clk 0:00:05.8]} 129. Ra6 {[%clk 0:00:09.7]}
129... Rb8 {[%clk 0:00:05.9]} 130. Ke4 {[%clk 0:00:09.2]} 130... Re8+ {[%clk
0:00:06.1]} 131. Ne6+ {[%clk 0:00:09.3]} 131... Kf6 {[%clk 0:00:05.4]} 132. Kd5
{[%clk 0:00:10.2]} 132... Ke7 {[%clk 0:00:03.3]} 133. Ra7+ {[%clk 0:00:09.9]}
133... Kf6 {[%clk 0:00:04]} 134. Rh7 {[%clk 0:00:10]} 134... Kf5 {[%clk
0:00:02.1]} 135. Ng7+ {[%clk 0:00:09.8]} 135... Kg6 {[%clk 0:00:02.8]} 136. Nxe8
{[%clk 0:00:10.7]} 136... Kxh7 {[%clk 0:00:03.2]} 1/2-1/2

[Event "Late-Titled-Tuesday-Blitz-June-18-2024"]
[Site "Chess.com"]
[Date "2024.06.18"]
[Round "3"]
[White "Lady_Nika"]
[Black "KNVB"]
[Result "1/2-1/2"]
[WhiteElo "2522"]
[BlackElo "2789"]
[TimeControl "180+1"]
[EndTime "14:33:57 PDT"]
[Termination "Game drawn by 50-move rule"]

1. e4 {[%clk 0:03:00]} 1... b6 {[%clk 0:02:59.2]} 2. d4 {[%clk 0:02:58.3]} 2...
Bb7 {[%clk 0:02:59.6]} 3. Bd3 {[%clk 0:02:58]} 3... e6 {[%clk 0:03:00.1]} 4. Nf3
{[%clk 0:02:55.9]} 4... d5 {[%clk 0:03:00.3]} 5. e5 {[%clk 0:02:55.6]} 5... Ba6
{[%clk 0:03:00.1]} 6. O-O {[%clk 0:02:55]} 6... Bxd3 {[%clk 0:03:00.3]} 7. Qxd3
{[%clk 0:02:54.8]} 7... Ne7 {[%clk 0:03:01.2]} 8. b3 {[%clk 0:02:54.5]} 8... Qd7
{[%clk 0:03:00.3]} 9. Bb2 {[%clk 0:02:54.7]} 9... Nbc6 {[%clk 0:02:53.7]} 10. a3
{[%clk 0:02:53.9]} 10... Nf5 {[%clk 0:02:48.9]} 11. Nbd2 {[%clk 0:02:53.4]}
11... Be7 {[%clk 0:02:48.3]} 12. c4 {[%clk 0:02:52.3]} 12... O-O {[%clk
0:02:46.9]} 13. Rfd1 {[%clk 0:02:47.6]} 13... Rfd8 {[%clk 0:02:41.9]} 14. Nf1
{[%clk 0:02:36.8]} 14... Rac8 {[%clk 0:02:32.1]} 15. g4 {[%clk 0:02:33.7]} 15...
Nh4 {[%clk 0:02:31.6]} 16. Nxh4 {[%clk 0:02:29.1]} 16... Bxh4 {[%clk 0:02:32.5]}
17. f4 {[%clk 0:02:24.6]} 17... Be7 {[%clk 0:02:28.5]} 18. Ne3 {[%clk
0:02:22.9]} 18... dxc4 {[%clk 0:02:27.7]} 19. bxc4 {[%clk 0:02:22.5]} 19... Bc5
{[%clk 0:01:46.2]} 20. Nc2 {[%clk 0:02:06]} 20... Nxd4 {[%clk 0:00:31.5]} 21.
Bxd4 {[%clk 0:01:52]} 21... Qa4 {[%clk 0:00:22.2]} 22. Qc3 {[%clk 0:01:40.2]}
22... Bxd4+ {[%clk 0:00:04.3]} 23. Rxd4 {[%clk 0:01:39.2]} 23... c5 {[%clk
0:00:04]} 24. Rd6 {[%clk 0:01:35.1]} 24... Rxd6 {[%clk 0:00:02.4]} 25. exd6
{[%clk 0:01:35.6]} 25... Qc6 {[%clk 0:00:03.1]} 26. Rd1 {[%clk 0:01:35.7]} 26...
Qe4 {[%clk 0:00:03.4]} 27. d7 {[%clk 0:01:32.2]} 27... Rd8 {[%clk 0:00:03.7]}
28. Ne1 {[%clk 0:01:20.3]} 28... Qxf4 {[%clk 0:00:02.1]} 29. Qg3 {[%clk
0:01:18.7]} 29... Qxg3+ {[%clk 0:00:02.1]} 30. hxg3 {[%clk 0:01:18.6]} 30... Kf8
{[%clk 0:00:03]} 31. Nf3 {[%clk 0:01:17.4]} 31... f6 {[%clk 0:00:03.5]} 32. g5
{[%clk 0:01:10.2]} 32... Ke7 {[%clk 0:00:03.7]} 33. Kf2 {[%clk 0:01:09.9]} 33...
Rxd7 {[%clk 0:00:01.8]} 34. Rh1 {[%clk 0:01:05.5]} 34... Kf8 {[%clk 0:00:01.2]}
35. Ke3 {[%clk 0:01:02.8]} 35... Kg8 {[%clk 0:00:01.4]} 36. g4 {[%clk
0:00:59.7]} 36... Rd8 {[%clk 0:00:01.4]} 37. gxf6 {[%clk 0:00:59.8]} 37... gxf6
{[%clk 0:00:02.3]} 38. g5 {[%clk 0:01:00.3]} 38... Rf8 {[%clk 0:00:02]} 39. gxf6
{[%clk 0:00:59.5]} 39... Rxf6 {[%clk 0:00:02.9]} 40. Ke4 {[%clk 0:00:59.7]}
40... Rg6 {[%clk 0:00:02.3]} 41. Rd1 {[%clk 0:00:39.8]} 41... Rg4+ {[%clk
0:00:02.1]} 42. Ke5 {[%clk 0:00:39.2]} 42... Rxc4 {[%clk 0:00:01.9]} 43. Ng5
{[%clk 0:00:38.2]} 43... Kg7 {[%clk 0:00:01.5]} 44. Nxe6+ {[%clk 0:00:37.6]}
44... Kg6 {[%clk 0:00:01.8]} 45. Rg1+ {[%clk 0:00:37.3]} 45... Kh6 {[%clk
0:00:01.1]} 46. Kf5 {[%clk 0:00:34.6]} 46... Rh4 {[%clk 0:00:01.3]} 47. Nd8
{[%clk 0:00:28.9]} 47... Rh2 {[%clk 0:00:01.2]} 48. Nf7+ {[%clk 0:00:27.1]}
48... Kh5 {[%clk 0:00:01.7]} 49. Rg5+ {[%clk 0:00:24]} 49... Kh4 {[%clk
0:00:02.3]} 50. Rg4+ {[%clk 0:00:21.4]} 50... Kh5 {[%clk 0:00:02.9]} 51. Rf4
{[%clk 0:00:18.4]} 51... Rd2 {[%clk 0:00:01.4]} 52. Rf1 {[%clk 0:00:09.5]} 52...
Kh4 {[%clk 0:00:01.1]} 53. Ne5 {[%clk 0:00:06.7]} 53... Kg3 {[%clk 0:00:01.3]}
54. Rf3+ {[%clk 0:00:06.3]} 54... Kg2 {[%clk 0:00:01.6]} 55. Rf4 {[%clk
0:00:06.5]} 55... b5 {[%clk 0:00:01.6]} 56. Rg4+ {[%clk 0:00:06.5]} 56... Kf1
{[%clk 0:00:01.7]} 57. Rh4 {[%clk 0:00:06.7]} 57... c4 {[%clk 0:00:01.7]} 58.
Rxh7 {[%clk 0:00:06.9]} 58... c3 {[%clk 0:00:02]} 59. Rc7 {[%clk 0:00:07]} 59...
c2 {[%clk 0:00:02.5]} 60. Nf3 {[%clk 0:00:07]} 60... Rf2 {[%clk 0:00:02.5]} 61.
Ke4 {[%clk 0:00:07.2]} 61... Re2+ {[%clk 0:00:01.3]} 62. Kd3 {[%clk 0:00:06.3]}
62... Rf2 {[%clk 0:00:01.9]} 63. Nd4 {[%clk 0:00:06.1]} 63... Rg2 {[%clk
0:00:01.4]} 64. Nxc2 {[%clk 0:00:06.3]} 64... Rg3+ {[%clk 0:00:02.1]} 65. Kd2
{[%clk 0:00:06.2]} 65... Rb3 {[%clk 0:00:01.9]} 66. Rc3 {[%clk 0:00:05.3]} 66...
Rb2 {[%clk 0:00:02.1]} 67. Kd3 {[%clk 0:00:04.5]} 67... a5 {[%clk 0:00:02.2]}
68. Nd4 {[%clk 0:00:04.7]} 68... b4 {[%clk 0:00:01.6]} 69. axb4 {[%clk
0:00:05.1]} 69... Rxb4 {[%clk 0:00:01.2]} 70. Rc1+ {[%clk 0:00:05.1]} 70... Kg2
{[%clk 0:00:01.3]} 71. Rc2+ {[%clk 0:00:05.1]} 71... Kg3 {[%clk 0:00:01.3]} 72.
Ra2 {[%clk 0:00:05.5]} 72... a4 {[%clk 0:00:01.3]} 73. Ke4 {[%clk 0:00:04.9]}
73... Kg4 {[%clk 0:00:01.2]} 74. Rg2+ {[%clk 0:00:04.7]} 74... Kh5 {[%clk
0:00:01.7]} 75. Ra2 {[%clk 0:00:04.6]} 75... Kg6 {[%clk 0:00:01.7]} 76. Ra3
{[%clk 0:00:04.6]} 76... Kf7 {[%clk 0:00:02.1]} 77. Ke5 {[%clk 0:00:04.7]} 77...
Ke8 {[%clk 0:00:02.3]} 78. Rh3 {[%clk 0:00:04.5]} 78... Kd7 {[%clk 0:00:02.6]}
79. Rh7+ {[%clk 0:00:04.5]} 79... Kc8 {[%clk 0:00:02.9]} 80. Nc6 {[%clk
0:00:04]} 80... Rb1 {[%clk 0:00:01.8]} 81. Kd6 {[%clk 0:00:04.4]} 81... Rd1+
{[%clk 0:00:01.7]} 82. Kc5 {[%clk 0:00:04.8]} 82... a3 {[%clk 0:00:02.2]} 83.
Kb6 {[%clk 0:00:04.3]} 83... Rb1+ {[%clk 0:00:02.1]} 84. Kc5 {[%clk 0:00:02.9]}
84... a2 {[%clk 0:00:02.7]} 85. Rh8+ {[%clk 0:00:03.3]} 85... Kc7 {[%clk
0:00:02.3]} 86. Rh7+ {[%clk 0:00:03.7]} 86... Kc8 {[%clk 0:00:02.6]} 87. Rh8+
{[%clk 0:00:04.2]} 87... Kd7 {[%clk 0:00:03.3]} 88. Rh7+ {[%clk 0:00:04.5]}
88... Ke6 {[%clk 0:00:03.9]} 89. Re7+ {[%clk 0:00:04.8]} 89... Kf6 {[%clk
0:00:04.3]} 90. Ra7 {[%clk 0:00:04.9]} 90... a1=Q {[%clk 0:00:05]} 91. Rxa1
{[%clk 0:00:05.4]} 91... Rxa1 {[%clk 0:00:05.9]} 92. Nb4 {[%clk 0:00:06]} 92...
Rd1 {[%clk 0:00:05.5]} 93. Nd5+ {[%clk 0:00:06.3]} 93... Ke5 {[%clk 0:00:05.6]}
94. Nb4 {[%clk 0:00:06.9]} 94... Rc1+ {[%clk 0:00:05.7]} 95. Kb5 {[%clk
0:00:07.3]} 95... Rc3 {[%clk 0:00:04]} 96. Nc6+ {[%clk 0:00:06.6]} 96... Kd6
{[%clk 0:00:02.2]} 97. Nb4 {[%clk 0:00:07]} 97... Rc5+ {[%clk 0:00:01.7]} 98.
Ka4 {[%clk 0:00:06.9]} 98... Rh5 {[%clk 0:00:02.2]} 99. Kb3 {[%clk 0:00:06.4]}
99... Rh4 {[%clk 0:00:01.3]} 100. Kc3 {[%clk 0:00:05.8]} 100... Rg4 {[%clk
0:00:01.3]} 101. Nd3 {[%clk 0:00:05]} 101... Kd5 {[%clk 0:00:01.3]} 102. Nb2
{[%clk 0:00:03.9]} 102... Rg3+ {[%clk 0:00:01.4]} 103. Nd3 {[%clk 0:00:04.4]}
103... Re3 {[%clk 0:00:01.3]} 104. Kd2 {[%clk 0:00:04.6]} 104... Kd4 {[%clk
0:00:01.8]} 105. Nb4 {[%clk 0:00:04.1]} 105... Rh3 {[%clk 0:00:02.1]} 106. Nc6+
{[%clk 0:00:04.3]} 106... Kd5 {[%clk 0:00:02.3]} 107. Nb4+ {[%clk 0:00:04.6]}
107... Kc4 {[%clk 0:00:02.9]} 108. Nc6 {[%clk 0:00:05]} 108... Rh5 {[%clk
0:00:01.8]} 109. Ke2 {[%clk 0:00:03.9]} 109... Rc5 {[%clk 0:00:01.3]} 110. Nd8
{[%clk 0:00:03.3]} 110... Rd5 {[%clk 0:00:01.4]} 111. Nf7 {[%clk 0:00:03.7]}
111... Rf5 {[%clk 0:00:01.4]} 112. Nh6 {[%clk 0:00:04]} 112... Rg5 {[%clk
0:00:01.8]} 113. Kf3 {[%clk 0:00:04]} 113... Kd5 {[%clk 0:00:01.8]} 114. Kf4
{[%clk 0:00:04.5]} 114... Rg1 {[%clk 0:00:01.5]} 115. Ng4 {[%clk 0:00:04.8]}
115... Rf1+ {[%clk 0:00:01.5]} 116. Kg5 {[%clk 0:00:05.2]} 116... Ke6 {[%clk
0:00:01.2]} 117. Ne3 {[%clk 0:00:04.8]} 117... Rf3 {[%clk 0:00:01.3]} 118. Ng4
{[%clk 0:00:04.7]} 118... Rc3 {[%clk 0:00:01.1]} 119. Kf4 {[%clk 0:00:04.8]}
119... Rb3 {[%clk 0:00:01.5]} 120. Ke4 {[%clk 0:00:05]} 120... Rb4+ {[%clk
0:00:01.9]} 121. Kf3 {[%clk 0:00:05.5]} 121... Kf5 {[%clk 0:00:02]} 122. Ne3+
{[%clk 0:00:06.1]} 122... Kg5 {[%clk 0:00:02.5]} 123. Nd5 {[%clk 0:00:06.1]}
123... Rb3+ {[%clk 0:00:02.5]} 124. Ke4 {[%clk 0:00:06.5]} 124... Rb1 {[%clk
0:00:02.4]} 125. Ke5 {[%clk 0:00:06.9]} 125... Re1+ {[%clk 0:00:02.6]} 126. Kd6
{[%clk 0:00:07.3]} 126... Kf5 {[%clk 0:00:02.9]} 127. Nc7 {[%clk 0:00:07.3]}
127... Rd1+ {[%clk 0:00:02.6]} 128. Kc6 {[%clk 0:00:07.6]} 128... Ke5 {[%clk
0:00:03.4]} 129. Nb5 {[%clk 0:00:07.6]} 129... Rc1+ {[%clk 0:00:04]} 130. Kb6
{[%clk 0:00:08]} 130... Kd5 {[%clk 0:00:04.6]} 131. Nc7+ {[%clk 0:00:07.8]}
131... Kd6 {[%clk 0:00:05.2]} 132. Nb5+ {[%clk 0:00:08.2]} 132... Kd7 {[%clk
0:00:05.9]} 133. Nd4 {[%clk 0:00:07.3]} 133... Rc4 {[%clk 0:00:04.6]} 134. Nb5
{[%clk 0:00:07.6]} 134... Rc2 {[%clk 0:00:04.7]} 135. Nd4 {[%clk 0:00:07.8]}
135... Rc3 {[%clk 0:00:04.8]} 136. Nb5 {[%clk 0:00:08]} 136... Rc6+ {[%clk
0:00:05.4]} 137. Ka5 {[%clk 0:00:07.8]} 137... Rc4 {[%clk 0:00:04.2]} 138. Kb6
{[%clk 0:00:06.8]} 138... Rf4 {[%clk 0:00:04.3]} 139. Na7 {[%clk 0:00:06.7]}
139... Rb4+ {[%clk 0:00:03.2]} 140. Nb5 {[%clk 0:00:06.9]} 140... Rg4 {[%clk
0:00:02.3]} 141. Kc5 {[%clk 0:00:07.1]} 141... Rg5+ {[%clk 0:00:02.3]} 1/2-1/2

[Event "Late-Titled-Tuesday-Blitz-June-18-2024"]
[Site "Chess.com"]
[Date "2024.06.18"]
[Round "4"]
[White "NikitaShnadrygin"]
[Black "i_like_explosions"]
[Result "0-1"]
[WhiteElo "2708"]
[BlackElo "2431"]
[TimeControl "180+1"]
[EndTime "14:36:46 PDT"]
[Termination "i_like_explosions won by resignation"]

1. e4 {[%clk 0:03:00.9]} 1... c5 {[%clk 0:02:59.8]} 2. Nf3 {[%clk 0:03:00.2]}
2... Nc6 {[%clk 0:03:00.2]} 3. d4 {[%clk 0:03:00.8]} 3... cxd4 {[%clk
0:03:01.1]} 4. Nxd4 {[%clk 0:03:01.6]} 4... Nf6 {[%clk 0:03:01.2]} 5. Nc3 {[%clk
0:03:02.2]} 5... e5 {[%clk 0:03:01.6]} 6. Ndb5 {[%clk 0:03:02.8]} 6... d6 {[%clk
0:03:02]} 7. Bg5 {[%clk 0:03:03.3]} 7... a6 {[%clk 0:03:02.5]} 8. Na3 {[%clk
0:03:03.4]} 8... b5 {[%clk 0:03:02.4]} 9. Nd5 {[%clk 0:03:04.1]} 9... Be7 {[%clk
0:03:03.1]} 10. Bxf6 {[%clk 0:03:04.8]} 10... Bxf6 {[%clk 0:03:03.8]} 11. c3
{[%clk 0:03:05.5]} 11... Bg5 {[%clk 0:03:04.1]} 12. Nc2 {[%clk 0:03:06.2]} 12...
Ne7 {[%clk 0:03:04.5]} 13. a3 {[%clk 0:03:03.1]} 13... O-O {[%clk 0:02:56.7]}
14. Ncb4 {[%clk 0:03:01.8]} 14... Nxd5 {[%clk 0:02:48.2]} 15. Nxd5 {[%clk
0:03:01.3]} 15... f5 {[%clk 0:02:46.2]} 16. Bd3 {[%clk 0:02:59.6]} 16... f4
{[%clk 0:02:40.1]} 17. f3 {[%clk 0:02:52.1]} 17... Bh4+ {[%clk 0:02:38.5]} 18.
Kf1 {[%clk 0:02:51.8]} 18... Kh8 {[%clk 0:02:32.2]} 19. Qe2 {[%clk 0:02:46.1]}
19... g5 {[%clk 0:02:26]} 20. c4 {[%clk 0:02:41.5]} 20... bxc4 {[%clk
0:02:23.9]} 21. Bxc4 {[%clk 0:02:42.4]} 21... g4 {[%clk 0:02:24.2]} 22. fxg4
{[%clk 0:02:41]} 22... f3 {[%clk 0:02:24.7]} 23. gxf3 {[%clk 0:02:41.3]} 23...
Bxg4 {[%clk 0:02:24.9]} 24. Kg2 {[%clk 0:02:33.1]} 24... Bxf3+ {[%clk
0:02:20.5]} 25. Qxf3 {[%clk 0:02:33.5]} 25... Rxf3 {[%clk 0:02:21.3]} 26. Kxf3
{[%clk 0:02:33.7]} 26... Qf8+ {[%clk 0:02:21.8]} 27. Ke2 {[%clk 0:02:32.4]}
27... Qf2+ {[%clk 0:02:20.6]} 28. Kd3 {[%clk 0:02:33.3]} 28... Qd4+ {[%clk
0:02:20.8]} 0-1

[Event "Late-Titled-Tuesday-Blitz-June-18-2024"]
[Site "Chess.com"]
[Date "2024.06.18"]
[Round "4"]
[White "soloderisas"]
[Black "Kombinator01"]
[Result "1-0"]
[WhiteElo "2654"]
[BlackElo "2443"]
[TimeControl "180+1"]
[EndTime "14:37:14 PDT"]
[Termination "soloderisas won by resignation"]

1. d4 {[%clk 0:03:00.7]} 1... d5 {[%clk 0:03:00.6]} 2. Nf3 {[%clk 0:03:01.6]}
2... Nf6 {[%clk 0:03:00.9]} 3. Bf4 {[%clk 0:03:02]} 3... c5 {[%clk 0:02:59.9]}
4. e3 {[%clk 0:03:02.4]} 4... Nc6 {[%clk 0:03:00.2]} 5. c3 {[%clk 0:03:02.8]}
5... Qb6 {[%clk 0:03:00]} 6. Na3 {[%clk 0:03:02.6]} 6... Nh5 {[%clk 0:02:47.7]}
7. dxc5 {[%clk 0:02:58.6]} 7... Qxc5 {[%clk 0:02:46.5]} 8. Nb5 {[%clk
0:02:57.9]} 8... Nxf4 {[%clk 0:02:29.3]} 9. Nc7+ {[%clk 0:02:45.5]} 9... Kd8
{[%clk 0:02:29]} 10. Nxa8 {[%clk 0:02:46]} 10... Ne6 {[%clk 0:02:25.4]} 11. e4
{[%clk 0:02:31.8]} 11... d4 {[%clk 0:02:25.2]} 12. Rc1 {[%clk 0:02:21.4]} 12...
Qa5 {[%clk 0:02:07.7]} 13. Bc4 {[%clk 0:02:19.1]} 13... Qb6 {[%clk 0:01:35]} 1-0